Cogmind - Beta 11 @@@ ROGUE MODE // 2022.04.12 @ 02:19:12 Player: Rainynight Result: Destroyed by Y-45 Defender with Heavy Assault Rifle Performance ------------- Evolutions (2) 1000 Regions Visited (5) 1000 Robots Destroyed (8) 40 Value Destroyed (191) 191 Prototype IDs (23) 460 Alien Tech Used (0) 0 Bonus (300) 300 TOTAL SCORE: 2991 Bonus ------- Aligned with FarCom 300 Cogmind --------- Core Integrity 0/550 Matter 285/300 Energy 100/100 System Corruption 7% Temperature Cool (18) Movement Core (200) Ox3 Location -8/Materials Parts ------- > --- POWER (2) -------- (None) > --- PROPULSION (5) --- (None) > --- UTILITY (2) ------ Medium Storage Unit > --- WEAPON (2) ------- (None) > --- INVENTORY (10) --- Flight Unit Medium Storage Unit High-capacity Battery (250) High-capacity Matter Pod (123) Structural Scanner Structural Scanner Cloak of Protection Improved Propulsion Shielding Rocket Launcher Peak State ------------ > --- POWER ------------ Light Ion Engine > --- PROPULSION ------- Armored Treads Flight Unit Flight Unit Flight Unit Flight Unit > --- UTILITY ---------- Medium Storage Unit Structural Scanner > --- WEAPON ----------- EM Shotgun > --- INVENTORY -------- Medium Storage Unit High-capacity Battery High-capacity Matter Pod Structural Scanner Structural Scanner Cloak of Protection Improved Propulsion Shielding Rocket Launcher [Rating: 13] Favorites ----------- Power Light Ion Engine Engine Light Ion Engine Power Core Light Nuclear Core Propulsion Flight Unit Treads Armored Treads Leg Aluminum Leg Wheel Compact Wheel Flight Unit Flight Unit Utility Structural Scanner Device Structural Scanner Storage Medium Storage Unit Weapon EM Pulse Gun Energy Gun EM Pulse Gun Ballistic Gun Assault Rifle Launcher Rocket Launcher Build | -11 -10 -10 -10 -9 -8 ------- Run | Scr Mat Min Exi Min Mat Slots Evolved 4 | . . . . . 4 Power 1 | . . . . . 1 Propulsion 3 | . . . . . 3 Utility . | . . . . . . Weapon . | . . . . . . Parts Attached 23 | 2 2 2 3 5 9 Power 4 | . . . 1 1 2 Engine 3 | . . . 1 1 1 Core 1 | . . . . . 1 Reactor . | . . . . . . Propulsion 9 | 2 1 . . 2 4 Treads 1 | . . . . . 1 Leg 2 | . 1 . . . 1 Wheel 2 | 2 . . . . . Hover . | . . . . . . Flight 4 | . . . . 2 2 Utility 3 | . 1 . 1 1 . Device 2 | . 1 . . 1 . Storage 1 | . . . 1 . . Processor . | . . . . . . Hackware . | . . . . . . Protection . | . . . . . . Artifact . | . . . . . . Weapon 7 | . . 2 1 1 3 Energy Gun 5 | . . 1 1 . 3 Energy Cannon . | . . . . . . Ballistic Gun 1 | . . . . 1 . Ballistic Cannon . | . . . . . . Launcher 1 | . . 1 . . . Special Weapon . | . . . . . . Impact Weapon . | . . . . . . Slashing Weapon . | . . . . . . Piercing Weapon . | . . . . . . Special Melee Weapon . | . . . . . . Unidentified Prototypes . | . . . . . . Corrupted Parts 3 | . . . . . 3 System Corruption 7 | . . . . . 7 Parts Lost 13 | . 3 . . . 10 Power 2 | . . . . . 2 Propulsion 7 | . 2 . . . 5 Utility 1 | . . . . . 1 Weapon 3 | . 1 . . . 2 Highest Loss Streak 6 | . 1 . . . 6 To Critical Strikes . | . . . . . . Average Slot Usage (%) 64 | . 73 66 60 71 63 Engine 8 | . . . 9 13 6 Treads 1 | . . . . . 8 Leg 8 | . 4 14 14 . . Wheel 1 | . 14 . . . . Flight 9 | . . . . 25 25 Device 12 | . 11 14 14 14 8 Storage 13 | . 14 14 14 14 9 Energy Gun 5 | . . 9 8 1 3 Ballistic Gun 3 | . 27 12 . . . Naked Turns . | . . . . . . Heaviest Build 17 | 12 10 10 16 17 17 Greatest Support 26 | 26 26 10 10 10 20 Greatest Overweight (x) 5 | . . . 1 4 5 Average Overweight (x) . | . . . . 1 . Largest Inventory Capacity 10 | 8 8 8 10 10 10 Average Capacity 9 | 8 8 8 8 10 10 Most Carried 10 | 6 7 8 10 10 9 Average Carried 8 | 4 6 7 8 9 8 Final Capacity 10 | 8 8 8 10 10 10 Final Carried 10 | 2 7 8 10 9 9 Class Distribution -------------------- 88% | Mutant 11% | Scavenger-Mutant Dominant Class ---------------- Mutant | -10/Materials Mutant | -10/Mines Mutant | -10/Exiles Mutant | -9/Mines Scavenger-Mutant | -8/Materials Resources | -11 -10 -10 -10 -9 -8 ----------- Run | Scr Mat Min Exi Min Mat Matter Collected 357 | 200 . . 77 20 60 Remotely . | . . . . . . Salvage Created 235 | . . . . 52 183 Parts 19 | . . . . 6 13 Haulers Intercepted . | . . . . . . Recyclers Shooed . | . . . . . . Parts Field Recycled . | . . . . . . Retrieved Matter . | . . . . . . Parts Self-Destructed . | . . . . . . Prevented . | . . . . . . Kills | -11 -10 -10 -10 -9 -8 ------- Run | Scr Mat Min Exi Min Mat Combat Hostiles Destroyed 8 | . . . . 3 5 Guns 8 | . . . . 3 5 Classes Destroyed 2 | . . . . 1 1 Swarmer 5 | . . . . 3 2 Grunt 3 | . . . . . 3 Best Kill Streak 5 | . . . . 3 5 Combat Bots Only 5 | . . . . 3 5 Max Kills in Single Turn 1 | . . . . 1 1 Gunslinging . | . . . . . . Exploded . | . . . . . . Melee . | . . . . . . Uniques/NPCs Destroyed . | . . . . . . Combat | -11 -10 -10 -10 -9 -8 -------- Run | Scr Mat Min Exi Min Mat Damage Taken 1918 | . 405 28 . 44 1441 Core 658 | . 83 . . 22 553 Absorbed by Shields . | . . . . . . Core Remaining (%) 79 | 100 . . . 58 . Volleys Fired 59 | . . 15 . 4 40 Largest 2 | . . 2 . 1 1 Hottest 73 | . . 73 . 40 65 Shots Fired 66 | . . 22 . 4 40 Gun 65 | . . 21 . 4 40 Cannon . | . . . . . . Launcher 1 | . . 1 . . . Special . | . . . . . . Kinetic 6 | . . 6 . . . Thermal 6 | . . . . . 6 Explosive 1 | . . 1 . . . Electromagnetic 53 | . . 15 . 4 34 Robot Hit Streak 8 | . . . . 2 8 Robot Miss Streak 2 | . . . . 2 2 Penetration Max . | . . . . . . Secondary Targets . | . . . . . . Shots Hit Robots 21 | . . . . 2 19 Core Hits 18 | . 1 . . 3 14 Critical Kills . | . . . . . . Critical Parts Destroyed . | . . . . . . Critical Strikes . | . . . . . . Melee Attacks . | . . . . . . Impact . | . . . . . . Slashing . | . . . . . . Piercing . | . . . . . . Sneak Attacks . | . . . . . . Combat Hostiles . | . . . . . . Follow-up Attacks . | . . . . . . Damage Inflicted 344 | . 12 . . 47 285 Guns 322 | . . . . 47 275 Cannons . | . . . . . . Explosions . | . . . . . . Melee . | . . . . . . Ramming 22 | . 12 . . . 10 Kinetic . | . . . . . . Thermal 75 | . . . . . 75 Explosive . | . . . . . . Electromagnetic 247 | . . . . 47 200 Impact . | . . . . . . Slashing . | . . . . . . Piercing . | . . . . . . Highest Corruption 7 | . . . . . 7 Average Corruption 5 | . . . . . 5 Corruption Purged . | . . . . . . Corruption Blocked . | . . . . . . Effects 3 | . . . . . 3 Matter Fused 1 | . . . . . 1 Heat Flow Errors 1 | . . . . . 1 Data Loss (minor) 1 | . . . . . 1 Overload Shots . | . . . . . . Overflow Damage . | . . . . . . Projectiles . | . . . . . . Explosions . | . . . . . . Melee . | . . . . . . Knockbacks 1 | . . . . . 1 Impact 1 | . . . . . 1 Kinetic . | . . . . . . Secondary . | . . . . . . Self-Inflicted Damage 29 | . . 29 . . . Shots 1 | . . 1 . . . Rammed 2 | . . . . . 2 Targets Rammed 9 | . 3 . . . 6 Kicked 7 | . 3 . . . 4 Crushed . | . . . . . . Highest Temperature 152 | . 2 . . . 152 Average Temperature 45 | . 2 . . . 46 Received Heat Transfer 825 | . 240 . . . 585 Siege Activations . | . . . . . . Robots Corrupted . | . . . . . . Combat Hostiles . | . . . . . . Parts Fried . | . . . . . . Impact Corruptions . | . . . . . . Robots Melted . | . . . . . . Combat Hostiles . | . . . . . . Parts Melted . | . . . . . . Heat Transferred 185 | . . . . . 185 Parts Sabotaged . | . . . . . . Parts Stolen . | . . . . . . Parts Stripped . | . . . . . . Power Chain Reactions . | . . . . . . Missiles Intercepted . | . . . . . . Alert | -11 -10 -10 -10 -9 -8 ------- Run | Scr Mat Min Exi Min Mat Peak Influence 112 | . 15 31 . 70 112 Initial 27 | . . 1 . . 27 Average 40 | . 1 3 . 69 47 Maximum Alert Level . | . . . . . . Low Security (%) 100 | 100 100 100 . 100 100 Level 1 . | . . . . . . Level 2 . | . . . . . . Level 3 . | . . . . . . Level 4 . | . . . . . . Level 5 . | . . . . . . High Security . | . . . . . . Max Security . | . . . . . . Squads Dispatched 3 | . 2 . . . 1 Investigation 3 | . 2 . . . 1 Extermination . | . . . . . . Reinforcement . | . . . . . . Assault . | . . . . . . Garrison . | . . . . . . Intercept . | . . . . . . Searches Triggered . | . . . . . . Construction Impeded . | . . . . . . Haulers Reinforced . | . . . . . . Active Scanning Responses . | . . . . . . Cargo Convoy Interrupts . | . . . . . . Stealth | -11 -10 -10 -10 -9 -8 --------- Run | Scr Mat Min Exi Min Mat Distress Signals 2 | . 1 . . . 1 Communications Jammed . | . . . . . . Distress Signals . | . . . . . . Times Spotted 30 | . 12 . . 2 16 Peak Tracking Total 10 | . 9 . . 2 10 Tactical Retreats 2 | . 1 . . . 1 Traps | -11 -10 -10 -10 -9 -8 ------- Run | Scr Mat Min Exi Min Mat Traps Triggered 2 | . 2 . . . . Indirectly . | . . . . . . Trap Hack Attempts . | . . . . . . Triggered . | . . . . . . Disarmed . | . . . . . . Reprogrammed . | . . . . . . Reused . | . . . . . . Traps Extracted . | . . . . . . Installed . | . . . . . . Triggered . | . . . . . . Machines | -11 -10 -10 -10 -9 -8 ---------- Run | Scr Mat Min Exi Min Mat Machines Disabled . | . . . . . . Max in Single Turn . | . . . . . . Machines Sabotaged . | . . . . . . Garrisons Compromised . | . . . . . . Overloaded Fab Kills . | . . . . . . Hacking | -11 -10 -10 -10 -9 -8 --------- Run | Scr Mat Min Exi Min Mat Machines Accessed 8 | . 2 . 5 . 1 Terminals 3 | . 2 . . . 1 Fabricators . | . . . . . . Repair Stations . | . . . . . . Recycling Units . | . . . . . . Scanalyzers . | . . . . . . Garrison Access . | . . . . . . Total Hacks 58 | . 6 . 50 . 2 Successful 51 | . 1 . 50 . . Failed 7 | . 5 . . . 2 Catastrophic 3 | . 2 . . . 1 Database Lockouts . | . . . . . . Manual 6 | . 3 . 1 . 2 Terminals 8 | . 6 . . . 2 Fabricators . | . . . . . . Repair Stations . | . . . . . . Recycling Units . | . . . . . . Scanalyzers . | . . . . . . Garrison Access . | . . . . . . Terminal Hacks 51 | . 1 . 50 . . Record 49 | . . . 49 . . Recall Investigation 1 | . 1 . . . . EX-Prototype ID Bank 1 | . . . 1 . . Fabricator Hacks . | . . . . . . Repair Station Hacks . | . . . . . . Recycling Unit Hacks . | . . . . . . Scanalyzer . | . . . . . . Garrison Access Hacks . | . . . . . . Unauthorized Hacks . | . . . . . . Terminals . | . . . . . . Fabricators . | . . . . . . Repair Stations . | . . . . . . Recycling Units . | . . . . . . Scanalyzers . | . . . . . . Garrison Access . | . . . . . . Data Cores Recovered . | . . . . . . Used . | . . . . . . Hacking Detections 3 | . 2 . . . 1 Full Trace Events 2 | . 1 . . . 1 Feedback Events . | . . . . . . Feedback Blocked . | . . . . . . Robot Schematics Acquired . | . . . . . . Robots Built . | . . . . . . Authchips . | . . . . . . Time . | . . . . . . Total Robot Build Rating . | . . . . . . Part Schematics Acquired . | . . . . . . Parts Built . | . . . . . . Authchips . | . . . . . . Time . | . . . . . . Total Part Build Rating . | . . . . . . Parts Repaired . | . . . . . . Time . | . . . . . . Parts Recycled . | . . . . . . Recycled Matter . | . . . . . . Retrieved Matter . | . . . . . . Retrieved Components . | . . . . . . Parts Scanalyzed . | . . . . . . Part Schematics Acquired . | . . . . . . Parts Damaged . | . . . . . . Bothacking | -11 -10 -10 -10 -9 -8 ------------ Run | Scr Mat Min Exi Min Mat Used RIF Installer . | . . . . . . Robots Hacked . | . . . . . . Non-combat . | . . . . . . Combat . | . . . . . . Robot Hacks Applied . | . . . . . . Relay Couplers Released . | . . . . . . Fabnet Peak Effective % . | . . . . . . Robots Rewired . | . . . . . . Allies Hacked . | . . . . . . Hacks Repelled . | . . . . . . Allies | -11 -10 -10 -10 -9 -8 -------- Run | Scr Mat Min Exi Min Mat Total Allies . | . . . . . . Largest Group . | . . . . . . Highest-Rated Group . | . . . . . . Highest-Rated Ally . | . . . . . . Total Orders . | . . . . . . Ally Attacks . | . . . . . . Total Damage . | . . . . . . Kills . | . . . . . . Allies Corrupted . | . . . . . . Allies Melted . | . . . . . . Intel | -11 -10 -10 -10 -9 -8 ------- Run | Scr Mat Min Exi Min Mat Robot Analysis Total . | . . . . . . Derelict Logs Recovered . | . . . . . . Drone Launches . | . . . . . . Drone Recoveries . | . . . . . . Exploration | -11 -10 -10 -10 -9 -8 ------------- Run | Scr Mat Min Exi Min Mat Turns Passed 1812 | 6 197 95 880 314 320 Spaces Moved 1361 | 1 184 32 614 246 284 Core 13 | . . . . . 13 Treads 21 | . . . . . 21 Legs 695 | . 45 32 614 3 1 Wheels 140 | 1 139 . . . . Hover . | . . . . . . Flight 492 | . . . . 243 249 Fastest Speed 31 | 90 90 120 120 117 31 Average Speed 116 | 90 101 120 141 119 67 Slowest Speed 360 | 90 120 120 190 360 300 Overloaded Moves . | . . . . . . Propulsion Burnouts . | . . . . . . Robots Hopped . | . . . . . . Cave-ins Triggered . | . . . . . . Exploration Rate (%) 37 | 2 51 4 89 45 31 Regions Visited 5 Branch Regions 3 Pre-discovered Areas 1 | . . . 1 . . Known Exits Taken . | . . . . . . Unknown Exits Taken 5 | 1 1 1 1 1 . Scrap Searched 1 | . . . . 1 . Spaces Dug . | . . . . . . Terrain Destroyed 10 | . . 10 . . . Melee . | . . . . . . Projectile . | . . . . . . AOE 10 | . . 10 . . . Terrain Rammed . | . . . . . . Walls Destroyed . | . . . . . . Machines Disabled . | . . . . . . Actions | -11 -10 -10 -10 -9 -8 --------- Run | Scr Mat Min Exi Min Mat Total 1520 | 6 193 66 625 263 367 Wait 40 | . . 16 . . 24 Move 1356 | . 183 31 613 245 284 Hop . | . . . . . . Pick Up 13 | . 4 1 5 2 1 Fast Attach 12 | . 2 . 1 4 5 Attach 6 | . . 1 1 . 4 Detach 5 | . 1 1 . . 3 Swap 5 | 2 . 1 1 1 . Drop 15 | 4 . . 4 7 . Fire 59 | . . 15 . 4 40 Melee . | . . . . . . Ram . | . . . . . . Kick 7 | . 3 . . . 4 Crush 2 | . . . . . 2 Escape Stasis . | . . . . . . Rewire . | . . . . . . Trap . | . . . . . . Miscellaneous . | . . . . . . Route ------- -11/Scrapyard -10/Materials (discovered 2 exits: [*Mat] / [*Min]) -10/Mines -10/Exiles -9/Mines -8/Materials (discovered 1 exit: [*Sto]) History --------- Turn | Location | Event 7 | -11/Scrapyard | Discovered new exit (range 0) 7 | -11/Scrapyard | Entered Materials 137 | -10/Materials | Discovered new exit (range 15) 192 | -10/Materials | Discovered new exit (range 11) 204 | -10/Materials | Entered Mines 204 | -10/Mines | Discovered new exit (range 9) 211 | -10/Mines | Received a Rocket Launcher from a helpful Derelict 221 | -10/Mines | Met a Derelict bent on vengeance 299 | -10/Mines | Entered Exiles 314 | -10/Exiles | Build established: Mutant 328 | -10/Exiles | Met 8R-AWN 350 | -10/Exiles | Met EX-HEX 385 | -10/Exiles | Met EX-BIN 406 | -10/Exiles | Aligned with FarCom system 407 | -10/Exiles | Given EX-Vault access code 448 | -10/Exiles | Opened EX-Vault 457 | -10/Exiles | Found Cloak of Protection 493 | -10/Exiles | Warned to stay clear of 0b10 Research branches 527 | -10/Exiles | Met EX-DEC 533 | -10/Exiles | Learned location of Zion (-6) 671 | -10/Exiles | Visited The Gauntlet 1158 | -10/Exiles | Discovered new exit (range 14) 1179 | -10/Exiles | Left Exiles lab with Cloak of Protection 1179 | -10/Exiles | Entered Mines 1485 | -9/Mines | Discovered new exit (range 8) 1493 | -9/Mines | Entered Materials 1493 | -8/Materials | Evolved 4 slots: Power x1, Propulsion x3 1784 | -8/Materials | Lost 6 parts (1p3n2w) 1792 | -8/Materials | Discovered new exit (range 16) 1795 | -8/Materials | Core integrity fell below 50% 1810 | -8/Materials | Core integrity fell below 20% 1813 | -8/Materials | Destroyed by Y-45 Defender with Heavy Assault Rifle Last Messages --------------- 01765_ G-47 Trooper knocked back. 01767_ Slammed into S-10 Pest. 01768_ K-01 Serf collects debris. 01769_ Slammed into S-10 Pest. 01770_ Acquired 60 matter. 01772_ K-01 Serf collects debris. 01776_ System corrupted: Matter fused (-7). 01777_ K-01 Serf collects debris. 01778_ W-25 Informer sends out distress signal. 01785_ Aluminum Leg destroyed. 01785_ Arm. Treads destroyed. 01790_ Lgt. Nuclear Core destroyed. 01790_ K-01 Serf destroyed. 01791_ K-01 Serf collects debris. 01792_ EXIT=FOUND 01795_ K-01 Serf collects debris. 01798_ Structural Scanner destroyed. 01798_ K-01 Serf collects debris. 01803_ System corrupted: Heat flow error (+173). 01806_ S-10 Pest destroyed. Map ----- +----------------------------------------------------+ | ???????????????## # "" """%##?????? | | ???????????????## / ##?????? | | ???????????????## # ##?????? | | ???????????????############ # ##?????? | | ???????????????#### ## ## ! ######## | | ????????????????????????? ## ########+########## | | ??????????????????????????## ######## # = ! | | ??????????????????????????## ######## # T | | ??????????????????????????## + | | ??????????????????????????## ####### # | | ?????????????????????????? ####### ###+###### | | ???????????????????????????##/###???## ### # | | ??????????????????????????? ???## =[#= | | ?????????????????????g??????? ?????## *%/%""" | | ?????????????????????????????"??????## % #%"R | | ????????????????????????????????????## =#!""" | | ????????????????????????????????????## w # | | ??????????????????#?????????????????## ###### | | ??????????????????# ????????????????## ###### | | ??????????????????# ???????????????## ##???? | | ??????????????????# ??????????????## ##???? | | ????????????????###u #?????####+##### ##???? | | ????????????????# ????# ## ###### | | ????????????????# ##### Y ## | | ????????????????# gg Y | | ????????????????# < @ T k * #### | | ????????????????# k s%[s k%= #??? | | ????????????????# ##### * g ##### #??? | | ????????????????# ????# #???###+###??? | | ????????????????## k ?????####+####?????? =???? | | ?????????????????# ????????????????????? ! ?? | | ???????????????? ?????????????????????? ##? | | ?????????????? ???????????????????????" !#?? | | ????????????? a ????????????????????????? #?? | | ????????????? ??????????????????????????? #?? | | ?????????????? t ???????????????????????????????? | | ??????????????####???????????????????????????????? | | ?????????????????????????????????????????????????? | | ?????????????????????????????????????????????????? | | ?????????????????????????????????????????????????? | | ?????????????????????????????????????????????????? | | ?????????????????????????????????????????????????? | | ?????????????????????????????????????????????????? | | ?????????????????????????????????????????????????? | | ?????????????????????????????????????????????????? | | ?????????????????????????????????????????????????? | | ?????????????????????????????????????????????????? | | ?????????????????????????????????????????????????? | | ?????????????????????????????????????????????????? | | ?????????????????????????????????????????????????? | +----------------------------------------------------+ Best States ------------- Heat Dissipation 31 Energy Generation 14 Energy Capacity 160 Matter Stores 300 Matter Capacity 300 Sight Range 16 Terrain Scan Density 10 Evasion (%) 59 Recoil Reduction 1 Item Schematics ----------------- None Robot Schematics ------------------ None Fabricated ------------ Nothing Alien Tech Used ----------------- None Achievements -------------- None Challenges ------------ None Game ------ Seed BeamStoragePurifier Manual? 0 Play Time 00:18:37 Cumulative 69.0 hours Start 2022.04.12 @ 02:02:56 End 2022.04.12 @ 02:19:12 Sessions 1 Manual Loads 0 Difficulty Rogue Special Mode None Game No. 77 Rogue 77 Adventurer 0 Explorer 0 Win Type - Total 0 Types 0/0/0/0/0/0/0/0/0 Lore% 46 Gallery% 50 Achievement% 38 Wizard Run 0 Options --------- ASCII 1 Keyboard 1 Movement Numpad Keybinds 0 Fullscreen 1 Font 18/X11 Map View 76x50 Tactical HUD 1 Map Filters NONE Filters NONE Steam 1 RUN: 5d0ba4ec-c505-4638-83fe-beecd083506e